bitfinex/quotes_BTCUSD_20241111
["timestamp","ask_amount","ask_price","bid_price","bid_amount"]
[1731339705560,0.23922775,83831.0,83830.0,0.042033]
[1731339705839,0.35229554,83831.0,83830.0,0.042033]
[1731339706062,0.23922775,83831.0,83830.0,0.042033]
[1731339706267,0.24100999,83831.0,83830.0,0.042033]
[1731339707367,0.28710999,83831.0,83830.0,0.042033]
[1731339708249,0.04788224,83831.0,83830.0,0.042033]
[1731339708437,0.18055905,83834.0,83830.0,0.042033]
[1731339708593,0.00178224,83842.0,83830.0,0.042033]
[1731339708799,0.17877681,83835.0,83830.0,0.042033]
[1731339709380,0.00178224,83834.0,83830.0,0.042033]
[1731339710388,0.00178224,83841.0,83830.0,0.042033]
[1731339710592,0.22676212,83864.0,83831.0,0.00238579]
[1731339710593,0.17877681,83835.0,83831.0,0.00238579]
[1731339710796,0.00178224,83844.0,83830.0,0.042033]
[1731339710991,0.17877681,83836.0,83831.0,0.119287]
[1731339711195,0.17877681,83845.0,83832.0,0.119286]
[1731339711412,0.17877681,83845.0,83835.0,0.119281]
[1731339711598,0.17877681,83845.0,83830.0,0.042033]
[1731339711599,0.00179061,83849.0,83848.0,0.119263]
[1731339712697,0.00179061,83849.0,83836.0,0.11994075]
[1731339712919,0.00179061,83849.0,83848.0,0.119263]
[1731339713084,0.00179061,83849.0,83848.0,0.23920375]
[1731339713754,0.00179061,83849.0,83848.0,0.24158853]
[1731339713956,0.00179061,83849.0,83830.0,0.05155536]
[1731339714156,0.00179061,83849.0,83848.0,0.119263]
[1731339714356,0.00179061,83849.0,83848.0,0.23920375]
[1731339715470,0.00179061,83849.0,83848.0,0.119263]
[1731339715640,0.00179061,83849.0,83836.0,0.1]
[1731339715843,0.17877681,83845.0,83836.0,0.1]
[1731339716044,0.00179061,83849.0,83839.0,0.119275]
[1731339716249,0.17877681,83843.0,83837.0,0.00238532]
[1731339716445,0.01984735,83849.0,83833.0,0.119284]
[1731339716446,0.00179061,83849.0,83833.0,0.119284]
[1731339716644,0.00179061,83849.0,83834.0,0.12232605]
[1731339716850,0.00179061,83849.0,83848.0,0.119263]
[1731339717063,0.00179061,83849.0,83848.0,0.23920375]
[1731339717663,0.00179061,83849.0,83848.0,0.33920375]
[1731339718216,0.00179061,83849.0,83848.0,0.32347505]
[1731339719099,0.00179061,83849.0,83848.0,0.23197464]
[1731339719331,0.00179061,83849.0,83848.0,0.33435947]
[1731339719592,0.00179061,83849.0,83848.0,0.33197464]
[1731339719790,0.00179061,83849.0,83848.0,0.23197464]
[1731339720230,0.00179061,83849.0,83848.0,0.33197464]
[1731339720463,0.00179061,83849.0,83848.0,0.33697464]
[1731339720920,0.00179061,83849.0,83848.0,0.33197464]
[1731339721159,0.00179061,83849.0,83848.0,0.23197464]
[1731339721595,0.00179061,83849.0,83848.0,0.00238488]
[1731339721797,0.00179061,83849.0,83840.0,0.1]
[1731339721998,0.00179061,83849.0,83844.0,0.00837682]
[1731339721999,0.17877681,83847.0,83844.0,0.00837682]
[1731339722241,0.01805674,83846.0,83844.0,0.00837682]
[1731339722467,0.00179061,83849.0,83830.0,0.162171]
[1731339722693,0.00178224,83848.0,83830.0,0.042883]
[1731339722916,0.17877681,83843.0,83830.0,0.162171]
[1731339723144,0.17877681,83843.0,83832.0,0.119285]
[1731339723362,0.17877681,83843.0,83830.0,0.037883]
[1731339723363,0.12105424,83842.0,83830.0,0.037883]
[1731339723606,0.17877681,83833.0,83830.0,0.037883]
[1731339723837,0.18055905,83832.0,83830.0,0.037883]
[1731339724067,0.00178224,83837.0,83830.0,0.037883]
[1731339724287,0.121287,83831.0,83830.0,0.037883]
[1731339724510,0.11994075,83836.0,83830.0,0.037883]
[1731339724511,0.00178224,83832.0,83830.0,0.037883]
[1731339724715,0.002,83844.0,83830.0,0.037883]
[1731339724928,0.17877681,83834.0,83830.0,0.037883]
[1731339725144,0.00348224,83842.0,83830.0,0.037883]
[1731339725360,0.17877681,83834.0,83830.0,0.037883]
[1731339725562,0.00348224,83842.0,83830.0,0.037883]
[1731339725772,0.17877681,83834.0,83830.0,0.037883]
[1731339725991,0.005,83838.0,83830.0,0.037883]
[1731339725992,0.00178224,83833.0,83830.0,0.037883]
[1731339726235,0.12106724,83833.0,83830.0,0.037883]
[1731339726460,0.121287,83831.0,83830.0,0.037883]
[1731339726680,0.12306924,83831.0,83830.0,0.037883]
[1731339726892,0.238479,83865.0,83830.0,0.037883]
[1731339726893,0.00178224,83835.0,83830.0,0.037883]
[1731339727111,0.00178224,83840.0,83830.0,0.037883]
[1731339727312,0.17877681,83834.0,83830.0,0.037883]
[1731339727569,0.17877681,83843.0,83830.0,0.037883]
[1731339727570,0.00378224,83838.0,83830.0,0.037883]
[1731339727814,0.00348224,83842.0,83830.0,0.157171]
[1731339728033,0.0017,83842.0,83831.0,0.0023857]
[1731339728240,0.0017,83842.0,83838.0,0.119276]
[1731339728465,0.0017,83842.0,83831.0,0.1216727]
[1731339728466,0.0017,83842.0,83837.0,0.119278]
[1731339728692,0.0017,83842.0,83830.0,0.037883]
[1731339728864,0.0017,83842.0,83837.0,0.119278]
[1731339729064,0.0017,83842.0,83835.0,0.119281]
[1731339729390,0.0017,83842.0,83830.0,0.037883]
[1731339729391,0.01982992,83841.0,83830.0,0.037883]
[1731339729590,0.00178224,83841.0,83830.0,0.037883]
[1731339729949,0.17877681,83840.0,83831.0,0.00238556]
[1731339730203,0.17877681,83840.0,83830.0,0.037883]
[1731339730204,0.00178224,83839.0,83830.0,0.037883]
[1731339730402,0.238559,83837.0,83830.0,0.037883]
[1731339730631,0.119285,83833.0,83830.0,0.037883]
[1731339730769,0.00178224,83836.0,83830.0,0.037883]
[1731339730967,0.005,83851.0,83830.0,0.037883]
[1731339730968,0.00178224,83848.0,83831.0,0.119287]
[1731339731168,0.00178224,83848.0,83830.0,0.037883]
[1731339731169,0.17877681,83845.0,83833.0,0.119284]
[1731339731547,0.17877681,83845.0,83840.0,0.119274]
[1731339731673,0.17877681,83845.0,83838.0,0.119276]
[1731339731674,0.17877681,83845.0,83841.0,0.119273]
[1731339731879,0.17877681,83845.0,83837.0,0.119277]
[1731339732062,0.17877681,83845.0,83832.0,0.119285]
[1731339732265,0.17877681,83836.0,83830.0,0.037883]
[1731339732465,0.11928,83836.0,83830.0,0.037883]
[1731339732686,0.00178224,83840.0,83830.0,0.037883]
[1731339732687,0.21579055,83835.0,83830.0,0.037883]
[1731339732986,0.17877681,83834.0,83830.0,0.037883]
[1731339733235,0.119285,83833.0,83830.0,0.037883]
[1731339733407,0.119287,83831.0,83830.0,0.037883]
[1731339733609,0.15631365,83831.0,83830.0,0.037883]
[1731339735122,0.03702665,83831.0,83830.0,0.037883]
[1731339735330,0.15631365,83831.0,83830.0,0.037883]
[1731339735455,0.15809589,83831.0,83830.0,0.037883]
[1731339735667,0.28003664,83831.0,83830.0,0.037883]
[1731339735873,0.27803664,83831.0,83830.0,0.037883]
[1731339736071,0.15874964,83831.0,83819.0,0.001348]
[1731339736276,0.119296,83825.0,83819.0,0.001348]
[1731339736460,0.15810489,83825.0,83819.0,0.001348]
[1731339736910,0.28004564,83825.0,83819.0,0.001348]
[1731339737774,0.27804564,83825.0,83819.0,0.001348]
[1731339738200,0.28004564,83825.0,83819.0,0.001348]
[1731339738784,0.28504564,83825.0,83819.0,0.001348]
[1731339739437,0.121303,83820.0,83819.0,0.001348]
[1731339739645,0.28505264,83820.0,83819.0,0.001348]
[1731339739841,0.28005264,83820.0,83819.0,0.001348]
[1731339740070,0.28505264,83820.0,83819.0,0.001348]
[1731339740271,0.49182945,83820.0,83819.0,0.001348]
[1731339740429,0.3112704,83820.0,83819.0,0.001348]
[1731339740634,0.3012704,83820.0,83819.0,0.001348]
[1731339740834,0.2782704,83820.0,83819.0,0.001348]
[1731339741150,0.46182945,83820.0,83819.0,0.001348]
[1731339741357,0.46004721,83820.0,83819.0,0.001348]
[1731339741557,0.2782704,83820.0,83819.0,0.001348]
[1731339741783,0.28005264,83820.0,83819.0,0.001348]
[1731339741957,0.15632965,83820.0,83819.0,0.001348]
[1731339742186,0.03702665,83820.0,83819.0,0.001348]
[1731339742392,0.243576,83831.0,83819.0,0.001348]
[1731339742393,0.17877681,83833.0,83819.0,0.12128875]
[1731339742547,0.17877681,83833.0,83819.0,0.001348]
[1731339742548,0.17877681,83824.0,83819.0,0.001348]
[1731339742748,0.00178224,83823.0,83820.0,0.00316061]
[1731339742943,0.00178224,83823.0,83819.0,0.001348]
[1731339743425,0.121303,83820.0,83819.0,0.001348]
[1731339743626,0.27998959,83820.0,83819.0,0.001348]
[1731339743927,0.37458583,83820.0,83819.0,0.001348]
[1731339744131,0.27820735,83820.0,83819.0,0.001348]
[1731339744343,0.27798959,83820.0,83819.0,0.001348]
[1731339744513,0.27998959,83820.0,83819.0,0.001348]
[1731339744918,0.30798959,83820.0,83819.0,0.001348]
[1731339745155,0.32838457,83820.0,83819.0,0.001348]
[1731339745575,0.30894715,83820.0,83819.0,0.001348]
[1731339745728,0.30038457,83820.0,83819.0,0.001348]
[1731339745924,0.06114082,83820.0,83819.0,0.001348]
[1731339746128,0.05914082,83820.0,83819.0,0.001348]
[1731339746339,0.17908157,83820.0,83819.0,0.001348]
[1731339746554,0.36019037,83820.0,83819.0,0.001348]
[1731339746752,0.30838457,83820.0,83819.0,0.001348]
[1731339746951,0.53093325,83820.0,83819.0,0.001348]
[1731339747155,0.56841619,83820.0,83819.0,0.001348]
[1731339747882,0.57704744,83820.0,83819.0,0.001348]
[1731339748070,0.57704744,83820.0,83790.0,0.0179318]
[1731339748071,0.007,83803.0,83777.0,0.00259474]
[1731339748256,0.119352,83786.0,83780.0,0.17877681]
[1731339748459,0.00178224,83785.0,83777.0,0.00259474]
[1731339748660,0.0239723,83785.0,83777.0,0.00259474]
[1731339748878,0.0221904,83784.0,83777.0,0.00259474]
[1731339749066,0.0221904,83783.0,83777.0,0.00259474]
[1731339749262,0.41747281,83789.0,83777.0,0.00259474]
[1731339749263,0.119363,83778.0,83777.0,0.00259474]
[1731339749477,0.14333564,83778.0,83777.0,0.00259474]
[1731339749882,0.18026795,83778.0,83777.0,0.00259474]
[1731339750110,0.26327639,83778.0,83777.0,0.00259474]
[1731339750330,0.30021027,83778.0,83777.0,0.00259474]
[1731339750632,0.29842803,83778.0,83777.0,0.00259474]
[1731339751453,0.30042803,83778.0,83777.0,0.00259474]
[1731339751657,0.18106503,83778.0,83750.0,0.00238771]
[1731339751941,0.002,83761.0,83748.0,0.00238786]
[1731339752149,0.002,83749.0,83740.0,0.00135]
[1731339752605,0.02397264,83759.0,83740.0,0.00135]
[1731339752817,0.17877681,83753.0,83740.0,0.00135]
[1731339753050,0.0221904,83752.0,83740.0,0.00135]
[1731339753285,0.0221904,83751.0,83736.0,0.00835115]
[1731339753502,0.0221904,83750.0,83737.0,0.11994075]
[1731339753724,0.0221904,83750.0,83735.0,0.120773]
[1731339753725,0.0221904,83749.0,83735.0,0.00135]
[1731339753999,0.0221904,83748.0,83735.0,0.00135]
[1731339754164,0.17877681,83741.0,83735.0,0.00135]
[1731339754309,0.002,83741.0,83735.0,0.00135]
[1731339754525,0.002,83741.0,83713.0,0.00522908]
[1731339754526,0.17877681,83714.0,83713.0,0.00022908]
[1731339754720,0.00178224,83722.0,83713.0,0.00022908]
[1731339754963,0.02213245,83722.0,83713.0,0.00022908]
[1731339755169,0.18055905,83721.0,83694.0,0.119481]
[1731339755384,0.002,83715.0,83693.0,0.00135]
[1731339755590,0.17877681,83712.0,83693.0,0.00135]
[1731339755849,0.002,83708.0,83693.0,0.00135]
[1731339756038,0.26531744,83708.0,83693.0,0.00135]
[1731339757401,0.119492,83687.0,83686.0,0.02]
[1731339757597,0.34904068,83687.0,83686.0,0.02]
[1731339757866,0.02203328,83687.0,83686.0,0.02]
[1731339758104,0.03525325,83690.0,83686.0,0.02]
[1731339758327,0.29826881,83687.0,83686.0,0.02]
[1731339758535,0.18077681,83687.0,83686.0,0.02]
[1731339758737,0.18255905,83687.0,83686.0,0.02]
[1731339758955,0.30205105,83687.0,83686.0,0.02]
[1731339759172,0.30026881,83687.0,83686.0,0.02]
[1731339759574,0.002,83676.0,83656.0,0.00022908]
[1731339759775,0.11994075,83676.0,83656.0,0.00022908]
[1731339759977,0.18055905,83675.0,83656.0,0.11994075]
[1731339760253,0.119515,83672.0,83656.0,0.119537]
[1731339760563,0.17877681,83666.0,83653.0,0.11954]
[1731339760751,0.17877681,83666.0,83651.0,0.00135]
[1731339760752,0.002,83663.0,83652.0,0.239084]
[1731339760984,0.00178224,83665.0,83651.0,0.00135]
[1731339761193,0.17877681,83657.0,83651.0,0.00135]
[1731339761403,0.12172299,83656.0,83651.0,0.00135]
[1731339761624,0.14149356,83655.0,83652.0,0.00312616]
[1731339761834,0.17877681,83653.0,83651.0,0.00135]
[1731339762046,0.0237378,83652.0,83651.0,0.00135]
[1731339762257,0.12132424,83652.0,83651.0,0.00135]
[1731339762460,0.24126499,83652.0,83651.0,0.00135]
[1731339762879,0.478139,83658.0,83651.0,0.00135]
[1731339762880,0.0237378,83656.0,83651.0,0.00135]
[1731339763059,0.10877681,83655.0,83651.0,0.00135]
[1731339763467,0.00178224,83654.0,83652.0,0.00331985]
[1731339763682,0.00178224,83654.0,83651.0,0.00135]
[1731339763683,0.119542,83652.0,83651.0,0.00135]
[1731339763884,0.119541,83653.0,83651.0,0.00135]
[1731339764090,0.00178224,83652.0,83651.0,0.00135]
[1731339764329,0.24126499,83652.0,83651.0,0.00135]
[1731339764731,0.17877681,83673.0,83651.0,0.00135]
[1731339764939,0.17877681,83664.0,83663.0,0.119527]
[1731339765078,0.17877681,83664.0,83659.0,0.119531]
[1731339765298,0.17877681,83664.0,83653.0,0.1]
[1731339765299,0.17877681,83664.0,83655.0,0.119537]
[1731339765535,0.18055905,83663.0,83653.0,0.1]
[1731339765731,0.18055905,83663.0,83651.0,0.00135]
[1731339766443,0.18055905,83663.0,83651.0,0.120893]
[1731339766650,0.02186284,83672.0,83670.0,0.119516]
[1731339766851,0.02186284,83672.0,83651.0,0.00135]
[1731339766852,0.119517,83670.0,83651.0,0.00135]
[1731339767075,0.12172299,83669.0,83651.0,0.00135]
[1731339767476,0.03497701,83684.0,83652.0,0.00239064]
[1731339767477,0.17877681,83680.0,83652.0,0.00239064]
[1731339767807,0.17877681,83680.0,83679.0,0.119504]
[1731339768406,0.17877681,83703.0,83682.0,0.1195]
[1731339768640,0.17877681,83692.0,83682.0,0.2295]
[1731339769034,0.17877681,83692.0,83682.0,0.39724075]
[1731339769222,0.17877681,83724.0,83691.0,0.01]
[1731339769439,0.17877681,83715.0,83707.0,0.119464]
[1731339769693,0.17877681,83701.0,83700.0,0.219474]
[1731339769893,0.17877681,83715.0,83714.0,0.119454]
[1731339770116,0.17877681,83715.0,83701.0,0.105]
[1731339770343,0.17877681,83724.0,83723.0,0.119441]
[1731339770756,0.17877681,83724.0,83721.0,0.119443]
[1731339770952,0.17877681,83733.0,83723.0,0.119441]
[1731339771153,0.17877681,83733.0,83727.0,0.119435]
[1731339771353,0.17877681,83724.0,83704.0,0.1]
[1731339771566,0.119438,83726.0,83705.0,0.11994075]
[1731339771771,0.17877681,83722.0,83713.0,0.119455]
[1731339771898,0.17877681,83721.0,83705.0,0.11994075]
[1731339772131,0.17877681,83721.0,83715.0,0.119452]
[1731339772336,0.00178224,83730.0,83706.0,0.00238888]
[1731339772337,0.17877681,83720.0,83706.0,0.00238888]
[1731339772720,0.02189061,83732.0,83681.0,0.17877681]
[1731339772721,0.02189061,83732.0,83709.0,0.1]
[1731339772849,0.17877681,83723.0,83717.0,0.11945]
[1731339773050,0.17877681,83723.0,83722.0,0.119442]
[1731339773625,0.17877681,83733.0,83732.0,0.119428]
[1731339774015,0.17877681,83742.0,83724.0,0.1]
[1731339774225,0.17877681,83742.0,83730.0,0.11943]
[1731339774455,0.17877681,83732.0,83712.0,0.0464]
[1731339774660,0.17877681,83732.0,83691.0,0.34772376]
[1731339774661,0.002,83720.0,83693.0,0.0464]
[1731339774863,0.00232,83715.0,83705.0,0.119466]
[1731339775283,0.00232,83715.0,83707.0,0.119464]
[1731339775494,0.00232,83715.0,83704.0,0.119467]
[1731339775713,0.00232,83715.0,83707.0,0.119464]
[1731339775932,0.238888,83722.0,83693.0,0.0464]
[1731339775933,0.004018,83723.0,83708.0,0.11994075]
[1731339776103,0.17877681,83719.0,83718.0,0.119448]
[1731339776304,0.17877681,83721.0,83720.0,0.119445]
[1731339776562,0.001698,83723.0,83722.0,0.119442]
[1731339776736,0.001698,83723.0,83722.0,0.23938275]
[1731339777155,0.001698,83723.0,83722.0,0.23076809]
[1731339777305,0.001698,83723.0,83722.0,0.11082734]
[1731339777506,0.001698,83723.0,83716.0,0.11945]
[1731339777717,0.001698,83723.0,83718.0,0.119447]
[1731339777920,0.001698,83723.0,83712.0,0.0086048]
[1731339778119,0.001698,83723.0,83696.0,0.00268]
[1731339778120,0.18109681,83721.0,83697.0,0.00268]
[1731339778327,0.00232,83721.0,83698.0,0.12232965]
[1731339778667,0.17877681,83720.0,83699.0,0.005]
[1731339778871,0.17877681,83710.0,83701.0,0.11994075]
[1731339779070,0.02199774,83719.0,83712.0,0.119455]
[1731339779425,0.02199774,83719.0,83712.0,0.11994075]
[1731339779857,0.17877681,83718.0,83717.0,0.11945]
[1731339780069,0.17877681,83718.0,83714.0,0.119454]
[1731339780258,0.02199774,83717.0,83714.0,0.119454]
[1731339780498,0.001698,83723.0,83717.0,0.11945]
[1731339780499,0.02199774,83722.0,83717.0,0.11945]
[1731339780651,0.02199774,83722.0,83712.0,0.11994075]
[1731339780652,0.17877681,83720.0,83712.0,0.11994075]
[1731339780831,0.17877681,83720.0,83695.0,0.1]
[1731339781031,0.17877681,83720.0,83676.0,0.29828481]
[1731339781032,0.00179288,83716.0,83697.0,0.10268]
[1731339781257,0.17877681,83715.0,83699.0,0.1]
[1731339781457,0.17877681,83715.0,83702.0,0.119471]
[1731339781829,0.02379062,83716.0,83703.0,0.11994075]
[1731339781984,0.02379062,83716.0,83715.0,0.119452]
[1731339781985,0.00179288,83716.0,83715.0,0.119452]
[1731339782449,0.00179288,83716.0,83701.0,0.005]
[1731339782450,0.00179288,83716.0,83703.0,0.1]
[1731339782647,0.17877681,83713.0,83709.0,0.11946]
[1731339782797,0.00179288,83716.0,83714.0,0.119454]
[1731339782976,0.00179288,83716.0,83707.0,0.119463]
[1731339782977,0.20088709,83715.0,83707.0,0.119463]
[1731339783184,0.02211028,83714.0,83707.0,0.119463]
[1731339783382,0.00179288,83716.0,83702.0,0.0086727]
[1731339783383,0.20088709,83713.0,83702.0,0.0086727]
[1731339783595,0.02211028,83712.0,83708.0,0.119462]
[1731339783867,0.02211028,83712.0,83696.0,0.119479]
[1731339783868,0.02211028,83711.0,83690.0,0.005]
[1731339784064,0.238906,83715.0,83699.0,0.22785745]
[1731339784065,0.03539358,83715.0,83699.0,0.22785745]
[1731339784358,0.03539358,83715.0,83704.0,0.119468]
[1731339784359,0.17877681,83705.0,83704.0,0.119468]
[1731339784565,0.17877681,83705.0,83690.0,0.23285745]
[1731339784566,0.00232,83698.0,83684.0,0.00869308]
[1731339784776,0.00232,83693.0,83674.0,0.11951]
[1731339784980,0.119496,83685.0,83674.0,0.11994075]
[1731339785196,0.02391345,83692.0,83655.0,0.08037808]
[1731339785197,0.00232,83674.0,83655.0,0.08037808]
[1731339785392,0.119517,83670.0,83655.0,0.00107808]
[1731339785517,0.03543015,83669.0,83656.0,0.11994075]
[1731339785718,0.238996,83684.0,83665.0,0.119523]
[1731339785719,0.03543015,83668.0,83665.0,0.119523]
[1731339785946,0.23635136,83667.0,83665.0,0.119523]
[1731339786160,0.00232,83665.0,83655.0,0.120386]
[1731339786451,0.05757455,83664.0,83655.0,0.000849]
[1731339786608,0.17877681,83662.0,83655.0,0.000849]
[1731339786814,0.0221444,83663.0,83655.0,0.120387]
[1731339787061,0.17877681,83662.0,83655.0,0.000849]
[1731339787227,0.00232,83656.0,83655.0,0.000849]
[1731339787463,0.15728715,83656.0,83655.0,0.000849]
[1731339787682,0.03775015,83656.0,83655.0,0.000849]
[1731339788066,0.17943155,83656.0,83655.0,0.000849]
[1731339788269,0.09530592,83656.0,83655.0,0.000849]
[1731339788474,0.0725072,83656.0,83655.0,0.000849]
[1731339789456,0.05757455,83656.0,83655.0,0.000849]
[1731339789765,0.03539559,83672.0,83671.0,0.00268]
[1731339789935,0.17877681,83682.0,83661.0,0.0789]
[1731339789936,0.00178224,83681.0,83661.0,0.0789]
[1731339790187,0.00232,83673.0,83656.0,0.1]
[1731339790382,0.00232,83662.0,83655.0,0.000849]
[1731339790554,0.03539559,83658.0,83655.0,0.000849]
[1731339790772,0.119537,83656.0,83655.0,0.000849]
[1731339790994,0.13678891,83656.0,83655.0,0.000849]
[1731339791212,0.20303958,83656.0,83655.0,0.000849]
[1731339791444,0.12363924,83656.0,83655.0,0.000849]
[1731339791649,0.25664293,83656.0,83655.0,0.000849]
[1731339791848,0.33134293,83656.0,83655.0,0.000849]
[1731339792149,0.30156069,83656.0,83655.0,0.000849]
[1731339792370,0.29956069,83656.0,83655.0,0.000849]
[1731339792584,0.28849775,83656.0,83655.0,0.000849]
[1731339792798,0.28849775,83656.0,83646.0,0.26984915]
[1731339792799,0.00232,83647.0,83646.0,0.26984915]
[1731339792995,0.12187,83647.0,83646.0,0.26984915]
[1731339793428,0.00232,83647.0,83646.0,0.26984915]
[1731339793743,0.22547681,83672.0,83654.0,0.11954]
[1731339793892,0.22547681,83672.0,83648.0,0.119548]
[1731339793893,0.17877681,83654.0,83648.0,0.119548]
[1731339794098,0.17877681,83663.0,83654.0,0.119539]
[1731339794306,0.01105901,83661.0,83660.0,0.11208465]
[1731339794614,0.01105901,83671.0,83667.0,0.119521]
[1731339794718,0.01105901,83671.0,83667.0,0.219521]
[1731339794918,0.17877681,83672.0,83668.0,0.1]
[1731339795096,0.17877681,83672.0,83659.0,0.119532]
[1731339795298,0.17877681,83682.0,83673.0,0.119511]
[1731339795533,0.17877681,83692.0,83661.0,0.21953]
[1731339795534,0.17877681,83680.0,83679.0,0.119504]
[1731339795732,0.17877681,83680.0,83677.0,0.119506]
[1731339795932,0.17877681,83680.0,83669.0,0.00268]
[1731339795933,0.00232,83684.0,83662.0,0.00268]
[1731339796137,0.00178224,83691.0,83666.0,0.12233074]
[1731339796336,0.17877681,83683.0,83682.0,0.1195]
[1731339796537,0.17877681,83683.0,83672.0,0.119513]
[1731339796740,0.17877681,83683.0,83667.0,0.1]
[1731339796741,0.00410224,83682.0,83670.0,0.119516]
[1731339796914,0.00410224,83682.0,83667.0,0.1]
[1731339796915,0.00232,83682.0,83667.0,0.1]
[1731339797119,0.00178224,83690.0,83669.0,0.1]
[1731339797339,0.00178224,83690.0,83668.0,0.12501088]
[1731339797340,0.17877681,83676.0,83672.0,0.1]
[1731339797514,0.17877681,83685.0,83669.0,0.119517]
[1731339797515,0.17877681,83675.0,83669.0,0.119517]
[1731339797716,0.00232,83682.0,83669.0,0.119517]
[1731339797921,0.17877681,83676.0,83663.0,0.1]
[1731339798276,0.17877681,83676.0,83650.0,0.00022908]
[1731339798277,0.00232,83664.0,83650.0,0.00022908]
[1731339798480,0.002,83674.0,83640.0,0.00022908]
[1731339798481,0.00232,83654.0,83640.0,0.00022908]
[1731339798697,0.119545,83651.0,83640.0,0.00022908]
[1731339799010,0.00232,83652.0,83640.0,0.00022908]
[1731339799011,0.00232,83647.0,83640.0,0.00022908]
[1731339799142,0.239074,83656.0,83640.0,0.00022908]
[1731339799143,0.00232,83655.0,83640.0,0.00022908]
[1731339799327,0.17877681,83667.0,83647.0,0.12233152]
[1731339799533,0.17877681,83658.0,83657.0,0.119535]
[1731339799949,0.17877681,83658.0,83646.0,0.26984915]
[1731339799950,0.00232,83651.0,83646.0,0.26984915]
[1731339800149,0.00178224,83666.0,83646.0,0.26984915]
[1731339800351,0.03689288,83665.0,83647.0,0.11994075]
[1731339800557,0.17877681,83665.0,83647.0,0.11994075]
[1731339800752,0.17877681,83665.0,83655.0,0.119537]
[1731339800998,0.17877681,83665.0,83647.0,0.11994075]
[1731339800999,0.17877681,83656.0,83649.0,0.119545]
[1731339801227,0.17877681,83656.0,83646.0,0.38940015]
[1731339801228,0.00232,83659.0,83646.0,0.38940015]
[1731339801415,0.03718056,83658.0,83646.0,0.26984915]
[1731339801616,0.17877681,83656.0,83646.0,0.26984915]
[1731339801820,0.29659926,83655.0,83646.0,0.26984915]
[1731339802022,0.12187,83647.0,83646.0,0.26984915]
[1731339802224,0.17939226,83647.0,83646.0,0.26984915]
[1731339802399,0.05752226,83647.0,83646.0,0.26984915]
[1731339802614,0.05984226,83647.0,83646.0,0.26984915]
[1731339802824,0.17939284,83647.0,83646.0,0.26984915]
[1731339803050,0.29933359,83647.0,83646.0,0.26984915]
[1731339803816,0.30433359,83647.0,83646.0,0.26984915]
[1731339804038,0.34121776,83647.0,83646.0,0.26984915]
[1731339804199,0.34321776,83647.0,83646.0,0.12048151]
[1731339804407,0.34321776,83647.0,83646.0,0.05709097]
[1731339804601,0.34321776,83647.0,83646.0,0.03972237]
[1731339804876,0.30433359,83647.0,83646.0,0.03972237]
[1731339805074,0.00232,83633.0,83631.0,0.119571]
[1731339805243,0.05752284,83632.0,83625.0,0.119581]
[1731339805456,0.05752284,83631.0,83629.0,0.119574]
[1731339805709,0.05752284,83631.0,83619.0,0.17877681]
[1731339805710,0.18061488,83644.0,83642.0,0.119556]
[1731339805928,0.17877681,83655.0,83653.0,0.119541]
[1731339806093,0.17877681,83655.0,83651.0,0.119543]
[1731339806316,0.05752248,83654.0,83653.0,0.119541]
[1731339806506,0.02212403,83654.0,83653.0,0.119541]
[1731339806737,0.02212403,83654.0,83645.0,0.119552]
[1731339806933,0.02212403,83653.0,83643.0,0.1]
[1731339807134,0.17877681,83665.0,83649.0,0.1]
[1731339807437,0.17877681,83665.0,83664.0,0.119525]
[1731339807992,0.17877681,83674.0,83664.0,0.11994075]
[1731339808192,0.17877681,83674.0,83673.0,0.119512]
[1731339808396,0.02215103,83673.0,83668.0,0.119519]
[1731339808765,0.00183807,83672.0,83658.0,0.00268]
[1731339808963,0.02215059,83671.0,83665.0,0.1]
[1731339809168,0.02215059,83671.0,83649.0,0.00845972]
[1731339809169,0.00232,83668.0,83649.0,0.00845972]
[1731339809375,0.00183807,83667.0,83657.0,0.119534]
[1731339809581,0.00183807,83667.0,83646.0,0.00268]
[1731339809582,0.00232,83660.0,83637.0,0.122243]
[1731339809745,0.12136307,83665.0,83648.0,0.119547]
[1731339810104,0.00232,83660.0,83643.0,0.119555]
[1731339810288,0.20092807,83659.0,83644.0,0.0023907]
[1731339810526,0.00232,83660.0,83637.0,0.01101575]
[1731339810527,0.02215126,83658.0,83637.0,0.01101575]
[1731339810725,0.02215126,83657.0,83648.0,0.17877681]
[1731339810953,0.002,83689.0,83656.0,0.219537]
[1731339810954,0.00232,83672.0,83656.0,0.219537]
[1731339811085,0.17877681,83673.0,83639.0,0.005]
[1731339811086,0.17877681,83664.0,83663.0,0.119527]
[1731339811285,0.20094871,83664.0,83663.0,0.219527]
[1731339811502,0.0221719,83664.0,83663.0,0.219527]
[1731339811896,0.0221719,83664.0,83648.0,0.1]
[1731339812096,0.03731769,83672.0,83662.0,0.119528]
[1731339812097,0.0221719,83663.0,83662.0,0.119528]
[1731339812684,0.0221719,83663.0,83650.0,0.119545]
[1731339812793,0.0221719,83662.0,83649.0,0.1]
[1731339812997,0.00232,83659.0,83643.0,0.000849]
[1731339813215,0.005,83654.0,83629.0,0.17877681]
[1731339813442,0.005,83654.0,83651.0,0.119544]
[1731339813443,0.17877681,83652.0,83651.0,0.119544]
[1731339813645,0.17877681,83661.0,83651.0,0.11994075]
[1731339813976,0.17877681,83652.0,83651.0,0.119544]
[1731339814132,0.05786046,83652.0,83651.0,0.119544]
[1731339814383,0.02226894,83652.0,83651.0,0.119544]
[1731339814581,0.02226894,83652.0,83651.0,0.33948475]
[1731339814788,0.02226894,83652.0,83651.0,0.119544]
[1731339815190,0.02226894,83652.0,83640.0,0.1]
[1731339815191,0.02226894,83652.0,83642.0,0.119556]
[1731339815389,0.17877681,83650.0,83639.0,0.119561]
[1731339815612,0.005,83636.0,83633.0,0.119569]
[1731339815947,0.02227741,83635.0,83622.0,0.00868334]
[1731339816150,0.02227741,83635.0,83634.0,0.10965017]
[1731339816348,0.05792128,83635.0,83634.0,0.10965017]
[1731339816563,0.005,83648.0,83634.0,0.11994075]
[1731339816770,0.02227572,83647.0,83635.0,0.12233197]
[1731339816972,0.17877681,83649.0,83638.0,0.1]
[1731339817176,0.0222752,83648.0,83647.0,0.11955]
[1731339817391,0.06291204,83648.0,83647.0,0.1]